[Event "RUS-ch Blitz 2021"]
[Site "Sochi"]
[Date "2021.10.11"]
[Round "12.18"]
[White "Zakhartsov, Vladimir"]
[Black "Klukin, Kirill"]
[Result "1-0"]
[ECO "A00"]
[WhiteElo "2514"]
[BlackElo "2346"]
[Annotator "ChessBase"]
[PlyCount "103"]
[EventDate "2021.10.11"]
[EventType "blitz"]
[EventCountry "RUS"]
[SourceTitle "playchess.com"]
[Source "ChessBase"]
[SourceQuality "1"]
[TimeControl "180+2"]

1. a3 {[%emt 0:00:00]} Nf6 {[%emt 0:00:04]} 2. b4 {[%emt 0:00:02]} a5 {[%emt 0:
00:05]} 3. Bb2 {[%emt 0:00:07]} e6 {[%emt 0:00:00]} 4. b5 {[%emt 0:00:01]} d5 {
[%emt 0:00:07]} 5. e3 {[%emt 0:00:05]} Nbd7 {[%emt 0:00:00]} 6. c4 {[%emt 0:00:
00]} Be7 {[%emt 0:00:06]} 7. g4 {[%emt 0:00:03]} h6 {[%emt 0:00:21]} 8. h4 {
[%emt 0:00:00]} c6 {[%emt 0:00:02]} 9. cxd5 {[%emt 0:00:10]} exd5 {[%emt 0:00:
09]} 10. Qf3 {[%emt 0:00:08]} Nf8 {[%emt 0:00:42]} 11. g5 {[%emt 0:00:07]} hxg5
{[%emt 0:00:02]} 12. hxg5 {[%emt 0:00:00]} Rxh1 {[%emt 0:00:00]} 13. Qxh1 {
[%emt 0:00:06]} Ne4 {[%emt 0:00:00]} 14. Bxg7 {[%emt 0:00:22]} Nxg5 {[%emt 0:
00:07]} 15. Nc3 {[%emt 0:00:08]} Bf5 {[%emt 0:00:06]} 16. bxc6 {[%emt 0:00:11]}
bxc6 {[%emt 0:00:00]} 17. Nf3 {[%emt 0:00:04]} Nge6 {[%emt 0:00:00]} 18. Bxf8 {
[%emt 0:00:07]} Bxf8 {[%emt 0:00:04]} 19. Bh3 {[%emt 0:00:06]} Bxh3 {[%emt 0:
00:04]} 20. Qxh3 {[%emt 0:00:01]} Bg7 {[%emt 0:00:00]} 21. d4 {[%emt 0:00:08]}
Rb8 {[%emt 0:00:05]} 22. Ne2 {[%emt 0:00:38]} Qe7 {[%emt 0:00:00]} 23. Kf1 {
[%emt 0:00:01]} Rb3 {[%emt 0:00:06]} 24. Rc1 {[%emt 0:00:08]} Rb6 {[%emt 0:00:
52]} 25. a4 {[%emt 0:00:07]} Qd6 {[%emt 0:00:10]} 26. Ng3 {[%emt 0:00:11]} Qa3
{[%emt 0:00:06]} 27. Re1 {[%emt 0:00:03]} Qd3+ {[%emt 0:00:19]} 28. Kg2 {
[%emt 0:00:10]} Qg6 {[%emt 0:00:09]} 29. Nh4 {[%emt 0:00:22]} Qh7 {[%emt 0:00:
01]} 30. Qg4 {[%emt 0:00:06]} Bf8 {[%emt 0:00:03]} 31. Nhf5 {[%emt 0:00:06]}
Qg6 {[%emt 0:00:00]} 32. Qh4 {[%emt 0:00:04]} Qg5 {[%emt 0:00:00]} 33. Qh8 {
[%emt 0:00:04]} Rb2 {[%emt 0:00:06]} 34. Qe5 {[%emt 0:00:04]} Kd7 {[%emt 0:00:
09]} 35. Rc1 {[%emt 0:00:04]} Be7 {[%emt 0:00:03]} 36. Qh8 {[%emt 0:00:03]} Bf8
{[%emt 0:00:01]} 37. Qh7 {[%emt 0:00:03]} Qg6 {[%emt 0:00:02]} 38. Qh1 {
[%emt 0:00:03]} Bd6 {[%emt 0:00:03]} 39. Nxd6 {[%emt 0:00:03]} Kxd6 {[%emt 0:
00:00]} 40. Rc3 {[%emt 0:00:02]} Kd7 {[%emt 0:00:02]} 41. Qc1 {[%emt 0:00:02]}
Rb6 {[%emt 0:00:00]} 42. Qd2 {[%emt 0:00:03]} Rb4 {[%emt 0:00:05]} 43. Rc1 {
[%emt 0:00:01]} Qf6 {[%emt 0:00:02]} 44. Qc3 {[%emt 0:00:03]} Nc7 {[%emt 0:00:
00]} 45. Qc2 {[%emt 0:00:01]} Qe6 {[%emt 0:00:02]} 46. Rb1 {[%emt 0:00:00]} Na6
{[%emt 0:00:02]} 47. Rh1 {[%emt 0:00:05]} Qg6 {[%emt 0:00:04]} 48. Qe2 {
[%emt 0:00:03]} Nc7 {[%emt 0:00:00]} 49. Qf3 {[%emt 0:00:01]} Rb2 {[%emt 0:00:
03]} 50. Rh8 {[%emt 0:00:01]} Ne6 {[%emt 0:00:03]} 51. Ra8 {[%emt 0:00:03]} Ra2
{[%emt 0:00:04]} 52. Rxa5 {[%emt 0:00:00]} 1-0

[Event "RUS-ch Blitz 2021"]
[Site "Sochi"]
[Date "2021.10.11"]
[Round "12.19"]
[White "Demidov, Mikhail"]
[Black "Gavrilov, Oleg"]
[Result "0-1"]
[ECO "D02"]
[WhiteElo "2551"]
[BlackElo "2356"]
[Annotator "ChessBase"]
[PlyCount "148"]
[EventDate "2021.10.11"]
[EventType "blitz"]
[EventCountry "RUS"]
[SourceTitle "playchess.com"]
[Source "ChessBase"]
[SourceQuality "1"]
[TimeControl "180+2"]

1. Nf3 {[%emt 0:00:00]} d5 {[%emt 0:00:03]} 2. d4 {[%emt 0:00:04]} Nf6 {
[%emt 0:00:00]} 3. Bf4 {[%emt 0:00:00]} e6 {[%emt 0:00:00]} 4. e3 {[%emt 0:00:
06]} Bd6 {[%emt 0:00:01]} 5. Bg3 {[%emt 0:00:00]} b6 {[%emt 0:00:00]} 6. c4 {
[%emt 0:00:00]} O-O {[%emt 0:00:05]} 7. Nc3 {[%emt 0:00:00]} Bb7 {[%emt 0:00:
07]} 8. cxd5 {[%emt 0:00:06]} exd5 {[%emt 0:00:03]} 9. Bd3 {[%emt 0:00:05]} Re8
{[%emt 0:00:04]} 10. O-O {[%emt 0:00:06]} Bxg3 {[%emt 0:00:02]} 11. hxg3 {
[%emt 0:00:00]} Nbd7 {[%emt 0:00:05]} 12. Rc1 {[%emt 0:00:04]} c5 {[%emt 0:00:
22]} 13. dxc5 {[%emt 0:00:06]} Nxc5 {[%emt 0:00:07]} 14. Nd4 {[%emt 0:00:03]}
g6 {[%emt 0:00:07]} 15. Bb5 {[%emt 0:00:17]} Re7 {[%emt 0:00:00]} 16. Bc6 {
[%emt 0:00:01]} Rc8 {[%emt 0:00:14]} 17. Bxb7 {[%emt 0:00:01]} Rxb7 {[%emt 0:
00:06]} 18. Qe2 {[%emt 0:00:14]} Nce4 {[%emt 0:00:14]} 19. Nxe4 {[%emt 0:00:03]
} dxe4 {[%emt 0:00:05]} 20. Qa6 {[%emt 0:00:33]} Rbc7 {[%emt 0:00:00]} 21. Rxc7
{[%emt 0:00:06]} Rxc7 {[%emt 0:00:14]} 22. b3 {[%emt 0:00:40]} Qc8 {[%emt 0:00:
17]} 23. Qxc8+ {[%emt 0:00:06]} Rxc8 {[%emt 0:00:00]} 24. Rd1 {[%emt 0:00:05]}
Kf8 {[%emt 0:00:04]} 25. Kf1 {[%emt 0:00:00]} Ke7 {[%emt 0:00:07]} 26. Ke2 {
[%emt 0:00:00]} a6 {[%emt 0:00:03]} 27. Rb1 {[%emt 0:00:19]} Nd5 {[%emt 0:00:
07]} 28. Kd2 {[%emt 0:00:01]} Rc3 {[%emt 0:00:10]} 29. a3 {[%emt 0:00:16]} Rd3+
{[%emt 0:00:22]} 30. Kc2 {[%emt 0:00:01]} h5 {[%emt 0:00:08]} 31. Rh1 {[%emt 0:
00:14]} Rc3+ {[%emt 0:00:16]} 32. Kd2 {[%emt 0:00:00]} Rd3+ {[%emt 0:00:00]}
33. Kc2 {[%emt 0:00:03]} Rc3+ {[%emt 0:00:00]} 34. Kb2 {[%emt 0:00:00]} Rd3 {
[%emt 0:00:00]} 35. Rc1 {[%emt 0:00:10]} Rd2+ {[%emt 0:00:03]} 36. Rc2 {
[%emt 0:00:01]} Rd1 {[%emt 0:00:06]} 37. Rc1 {[%emt 0:00:06]} Rd2+ {[%emt 0:00:
03]} 38. Rc2 {[%emt 0:00:01]} Rd1 {[%emt 0:00:00]} 39. Ne2 {[%emt 0:00:07]} Kd6
{[%emt 0:00:09]} 40. b4 {[%emt 0:00:01]} f5 {[%emt 0:00:05]} 41. Nd4 {[%emt 0:
00:04]} Kd7 {[%emt 0:00:06]} 42. Nc6 {[%emt 0:00:04]} Kd6 {[%emt 0:00:03]} 43.
Nd4 {[%emt 0:00:01]} Kd7 {[%emt 0:00:01]} 44. Nc6 {[%emt 0:00:05]} Kd6 {
[%emt 0:00:02]} 45. Nb8 {[%emt 0:00:00]} Rg1 {[%emt 0:00:05]} 46. Nxa6 {
[%emt 0:00:04]} Rxg2 {[%emt 0:00:00]} 47. a4 {[%emt 0:00:04]} g5 {[%emt 0:00:
00]} 48. a5 {[%emt 0:00:01]} bxa5 {[%emt 0:00:02]} 49. bxa5 {[%emt 0:00:01]} h4
{[%emt 0:00:00]} 50. gxh4 {[%emt 0:00:01]} gxh4 {[%emt 0:00:00]} 51. Nb8 {
[%emt 0:00:06]} Rg8 {[%emt 0:00:04]} 52. Rc6+ {[%emt 0:00:01]} Ke7 {[%emt 0:00:
04]} 53. Na6 {[%emt 0:00:05]} Rg2 {[%emt 0:00:07]} 54. Rh6 {[%emt 0:00:02]}
Rxf2+ {[%emt 0:00:01]} 55. Kb3 {[%emt 0:00:00]} Nxe3 {[%emt 0:00:03]} 56. Nc5 {
[%emt 0:00:03]} Rf1 {[%emt 0:00:04]} 57. a6 {[%emt 0:00:00]} Rb1+ {[%emt 0:00:
03]} 58. Kc3 {[%emt 0:00:04]} Ra1 {[%emt 0:00:02]} 59. Kd4 {[%emt 0:00:02]} Ng4
{[%emt 0:00:02]} 60. Rxh4 {[%emt 0:00:02]} e3 {[%emt 0:00:01]} 61. Rh7+ {
[%emt 0:00:03]} Kd6 {[%emt 0:00:02]} 62. Nb7+ {[%emt 0:00:01]} Ke6 {[%emt 0:00:
02]} 63. Nc5+ {[%emt 0:00:01]} Kd6 {[%emt 0:00:02]} 64. Nb7+ {[%emt 0:00:01]}
Ke6 {[%emt 0:00:00]} 65. Kd3 {[%emt 0:00:00]} Ra3+ {[%emt 0:00:03]} 66. Ke2 {
[%emt 0:00:02]} Ra2+ {[%emt 0:00:01]} 67. Ke1 {[%emt 0:00:01]} Ke5 {[%emt 0:00:
02]} 68. Nc5 {[%emt 0:00:02]} f4 {[%emt 0:00:03]} 69. Rh5+ {[%emt 0:00:00]} Kd4
{[%emt 0:00:02]} 70. Ne6+ {[%emt 0:00:01]} Ke4 {[%emt 0:00:02]} 71. Nc5+ {
[%emt 0:00:08]} Kf3 {[%emt 0:00:00]} 72. Rh3+ {[%emt 0:00:00]} Kg2 {[%emt 0:00:
02]} 73. Rh4 {[%emt 0:00:02]} Kg3 {[%emt 0:00:05]} 74. Rh7 {[%emt 0:00:05]} f3
{[%emt 0:00:03]} 0-1

[Event "RUS-ch Blitz 2021"]
[Site "Sochi"]
[Date "2021.10.11"]
[Round "12.20"]
[White "Bryakin, Mikhail"]
[Black "Murzin, Volodar"]
[Result "1/2-1/2"]
[ECO "E61"]
[WhiteElo "2498"]
[BlackElo "2513"]
[Annotator "ChessBase"]
[PlyCount "105"]
[EventDate "2021.10.11"]
[EventType "blitz"]
[EventCountry "RUS"]
[SourceTitle "playchess.com"]
[Source "ChessBase"]
[SourceQuality "1"]
[TimeControl "180+2"]

1. d4 {[%emt 0:00:00]} Nf6 {[%emt 0:00:00]} 2. c4 {[%emt 0:00:04]} g6 {[%emt 0:
00:03]} 3. Nc3 {[%emt 0:00:05]} Bg7 {[%emt 0:00:00]} 4. Nf3 {[%emt 0:00:00]}
O-O {[%emt 0:00:00]} 5. Bf4 {[%emt 0:00:03]} d6 {[%emt 0:00:27]} 6. e3 {
[%emt 0:00:00]} Nbd7 {[%emt 0:00:03]} 7. Be2 {[%emt 0:00:00]} b6 {[%emt 0:00:
03]} 8. h3 {[%emt 0:00:07]} Bb7 {[%emt 0:00:00]} 9. O-O {[%emt 0:00:00]} Ne4 {
[%emt 0:00:02]} 10. Nxe4 {[%emt 0:00:09]} Bxe4 {[%emt 0:00:00]} 11. Nd2 {
[%emt 0:00:13]} Bb7 {[%emt 0:00:03]} 12. Bf3 {[%emt 0:00:01]} Qc8 {[%emt 0:00:
00]} 13. Bh2 {[%emt 0:00:08]} c5 {[%emt 0:00:09]} 14. Bxb7 {[%emt 0:00:08]}
Qxb7 {[%emt 0:00:00]} 15. Nf3 {[%emt 0:00:04]} b5 {[%emt 0:00:08]} 16. cxb5 {
[%emt 0:00:13]} Qxb5 {[%emt 0:00:00]} 17. Qd2 {[%emt 0:00:03]} Rab8 {[%emt 0:
00:12]} 18. b3 {[%emt 0:00:03]} Qb4 {[%emt 0:00:02]} 19. Qe2 {[%emt 0:00:21]}
Rfc8 {[%emt 0:00:08]} 20. Rac1 {[%emt 0:00:05]} Qb7 {[%emt 0:00:29]} 21. Rfd1 {
[%emt 0:00:05]} cxd4 {[%emt 0:00:45]} 22. Nxd4 {[%emt 0:00:03]} Rxc1 {[%emt 0:
00:04]} 23. Rxc1 {[%emt 0:00:00]} Rc8 {[%emt 0:00:00]} 24. Rxc8+ {[%emt 0:00:
05]} Qxc8 {[%emt 0:00:00]} 25. Qc2 {[%emt 0:00:00]} Qa6 {[%emt 0:00:37]} 26.
Bg3 {[%emt 0:00:19]} Nc5 {[%emt 0:00:16]} 27. f3 {[%emt 0:00:03]} Bf6 {[%emt 0:
00:09]} 28. Bf2 {[%emt 0:00:03]} Nd3 {[%emt 0:00:06]} 29. a4 {[%emt 0:00:20]}
Nc5 {[%emt 0:00:06]} 30. Nb5 {[%emt 0:00:04]} Qb6 {[%emt 0:00:00]} 31. b4 {
[%emt 0:00:24]} Ne6 {[%emt 0:00:03]} 32. Qc4 {[%emt 0:00:00]} a6 {[%emt 0:00:
00]} 33. Na3 {[%emt 0:00:09]} Kg7 {[%emt 0:00:02]} 34. b5 {[%emt 0:00:15]} axb5
{[%emt 0:00:00]} 35. Qxb5 {[%emt 0:00:09]} Qc7 {[%emt 0:00:06]} 36. Nc4 {
[%emt 0:00:00]} Nc5 {[%emt 0:00:02]} 37. a5 {[%emt 0:00:00]} Qc8 {[%emt 0:00:
03]} 38. e4 {[%emt 0:00:03]} Na6 {[%emt 0:00:03]} 39. Be3 {[%emt 0:00:03]} Bc3
{[%emt 0:00:04]} 40. Nb6 {[%emt 0:00:08]} Qb7 {[%emt 0:00:00]} 41. Kh1 {
[%emt 0:00:10]} Nc7 {[%emt 0:00:02]} 42. Qa4 {[%emt 0:00:00]} Qa6 {[%emt 0:00:
01]} 43. Qd7 {[%emt 0:00:07]} Qf1+ {[%emt 0:00:05]} 44. Kh2 {[%emt 0:00:03]}
Be5+ {[%emt 0:00:00]} 45. f4 {[%emt 0:00:02]} Bxf4+ {[%emt 0:00:01]} 46. Bxf4 {
[%emt 0:00:01]} Qxf4+ {[%emt 0:00:02]} 47. Kh1 {[%emt 0:00:05]} Qc1+ {[%emt 0:
00:02]} 48. Kh2 {[%emt 0:00:00]} Qf4+ {[%emt 0:00:08]} 49. Kh1 {[%emt 0:00:00]}
Qc1+ {[%emt 0:00:00]} 50. Kh2 {[%emt 0:00:00]} Qf4+ {[%emt 0:00:01]} 51. Kh1 {
[%emt 0:00:00]} Qc1+ {[%emt 0:00:04]} 52. Kh2 {[%emt 0:00:00]} Qf4+ {[%emt 0:
00:00]} 53. Kh1 {[%emt 0:00:01]} 1/2-1/2

[Event "RUS-ch Blitz 2021"]
[Site "Sochi"]
[Date "2021.10.11"]
[Round "12.21"]
[White "Faizrakhmanov, Ramil"]
[Black "Bologan, Victor"]
[Result "1-0"]
[ECO "A53"]
[WhiteElo "2483"]
[BlackElo "2574"]
[Annotator "ChessBase"]
[PlyCount "77"]
[EventDate "2021.10.11"]
[EventType "blitz"]
[EventCountry "RUS"]
[SourceTitle "playchess.com"]
[Source "ChessBase"]
[SourceQuality "1"]
[TimeControl "180+2"]

1. d4 {[%emt 0:00:00]} d6 {[%emt 0:00:23]} 2. c4 {[%emt 0:00:02]} e5 {[%emt 0:
00:00]} 3. Nc3 {[%emt 0:00:06]} exd4 {[%emt 0:00:00]} 4. Qxd4 {[%emt 0:00:00]}
Nc6 {[%emt 0:00:05]} 5. Qd2 {[%emt 0:00:00]} Nf6 {[%emt 0:00:00]} 6. e4 {
[%emt 0:00:05]} g6 {[%emt 0:00:00]} 7. Bd3 {[%emt 0:00:01]} Bg7 {[%emt 0:00:01]
} 8. Nge2 {[%emt 0:00:00]} O-O {[%emt 0:00:06]} 9. O-O {[%emt 0:00:01]} Nd7 {
[%emt 0:00:05]} 10. b3 {[%emt 0:00:10]} Nc5 {[%emt 0:00:00]} 11. Bb2 {[%emt 0:
00:00]} f5 {[%emt 0:00:04]} 12. exf5 {[%emt 0:00:04]} Nxd3 {[%emt 0:00:04]} 13.
Qxd3 {[%emt 0:00:05]} Bxf5 {[%emt 0:00:04]} 14. Qd2 {[%emt 0:00:07]} Ne5 {
[%emt 0:00:13]} 15. Ng3 {[%emt 0:00:05]} Qd7 {[%emt 0:00:30]} 16. Nxf5 {
[%emt 0:00:10]} Qxf5 {[%emt 0:00:06]} 17. Nd5 {[%emt 0:00:03]} Qf7 {[%emt 0:00:
21]} 18. f4 {[%emt 0:00:09]} Ng4 {[%emt 0:00:07]} 19. Bxg7 {[%emt 0:00:16]}
Qxg7 {[%emt 0:00:02]} 20. Rae1 {[%emt 0:00:04]} Rf7 {[%emt 0:00:22]} 21. h3 {
[%emt 0:00:10]} Nf6 {[%emt 0:00:00]} 22. Re6 {[%emt 0:00:11]} Raf8 {[%emt 0:00:
15]} 23. Rfe1 {[%emt 0:00:09]} Nh5 {[%emt 0:00:11]} 24. Re7 {[%emt 0:00:08]}
Nxf4 {[%emt 0:00:21]} 25. Rxf7 {[%emt 0:00:14]} Qxf7 {[%emt 0:00:04]} 26. Re7 {
[%emt 0:00:46]} Qf5 {[%emt 0:00:11]} 27. Nxf4 {[%emt 0:00:11]} Qxf4 {[%emt 0:
00:00]} 28. Qxf4 {[%emt 0:00:02]} Rxf4 {[%emt 0:00:00]} 29. Rxc7 {[%emt 0:00:
00]} Rf7 {[%emt 0:00:06]} 30. Rc8+ {[%emt 0:00:19]} Rf8 {[%emt 0:00:00]} 31.
Rxf8+ {[%emt 0:00:04]} Kxf8 {[%emt 0:00:00]} 32. Kf2 {[%emt 0:00:02]} Ke7 {
[%emt 0:00:00]} 33. Ke3 {[%emt 0:00:00]} Ke6 {[%emt 0:00:00]} 34. Ke4 {[%emt 0:
00:02]} h6 {[%emt 0:00:05]} 35. h4 {[%emt 0:00:00]} h5 {[%emt 0:00:05]} 36. g3
{[%emt 0:00:04]} a5 {[%emt 0:00:03]} 37. a3 {[%emt 0:00:03]} b6 {[%emt 0:00:03]
} 38. b4 {[%emt 0:00:09]} axb4 {[%emt 0:00:00]} 39. axb4 {[%emt 0:00:01]} 1-0

[Event "RUS-ch Blitz 2021"]
[Site "Sochi"]
[Date "2021.10.11"]
[Round "12.22"]
[White "Nesterov, Arseniy"]
[Black "Gochelashvili, David"]
[Result "1-0"]
[ECO "E73"]
[WhiteElo "2514"]
[BlackElo "2400"]
[Annotator "ChessBase"]
[PlyCount "57"]
[EventDate "2021.10.11"]
[EventType "blitz"]
[EventCountry "RUS"]
[SourceTitle "playchess.com"]
[Source "ChessBase"]
[SourceQuality "1"]
[TimeControl "180+2"]

1. d4 {[%emt 0:00:00]} Nf6 {[%emt 0:00:00]} 2. c4 {[%emt 0:00:00]} g6 {[%emt 0:
00:04]} 3. Nc3 {[%emt 0:00:04]} Bg7 {[%emt 0:00:00]} 4. e4 {[%emt 0:00:00]} d6
{[%emt 0:00:05]} 5. Be2 {[%emt 0:00:01]} O-O {[%emt 0:00:00]} 6. Be3 {[%emt 0:
00:00]} c5 {[%emt 0:00:17]} 7. d5 {[%emt 0:00:00]} e6 {[%emt 0:00:02]} 8. Nf3 {
[%emt 0:00:01]} exd5 {[%emt 0:00:00]} 9. cxd5 {[%emt 0:00:05]} Ng4 {[%emt 0:00:
20]} 10. Bf4 {[%emt 0:00:01]} a6 {[%emt 0:00:25]} 11. Nd2 {[%emt 0:00:17]} Ne5
{[%emt 0:00:10]} 12. a4 {[%emt 0:00:00]} f5 {[%emt 0:00:07]} 13. exf5 {[%emt 0:
00:03]} Bxf5 {[%emt 0:00:23]} 14. O-O {[%emt 0:00:02]} Nd3 {[%emt 0:00:05]} 15.
Bg3 {[%emt 0:00:17]} Nxb2 {[%emt 0:00:15]} 16. Qb3 {[%emt 0:00:01]} Nd3 {
[%emt 0:00:00]} 17. Nc4 {[%emt 0:00:10]} Nd7 {[%emt 0:00:25]} 18. Nxd6 {
[%emt 0:00:16]} Nb4 {[%emt 0:00:07]} 19. Nxf5 {[%emt 0:00:02]} Rxf5 {[%emt 0:
00:04]} 20. d6+ {[%emt 0:00:09]} Kh8 {[%emt 0:00:00]} 21. Rae1 {[%emt 0:00:06]}
Ne5 {[%emt 0:00:13]} 22. Ne4 {[%emt 0:00:09]} Qa5 {[%emt 0:00:20]} 23. Rd1 {
[%emt 0:00:05]} Rd8 {[%emt 0:00:10]} 24. Bh4 {[%emt 0:00:14]} Rd7 {[%emt 0:00:
03]} 25. Qe6 {[%emt 0:00:00]} Nbc6 {[%emt 0:00:12]} 26. f4 {[%emt 0:00:13]} Nd4
{[%emt 0:00:05]} 27. Rxd4 {[%emt 0:00:00]} cxd4 {[%emt 0:00:00]} 28. fxe5 {
[%emt 0:00:04]} Rxf1+ {[%emt 0:00:00]} 29. Bxf1 {[%emt 0:00:06]} 1-0

[Event "RUS-ch Blitz 2021"]
[Site "Sochi"]
[Date "2021.10.11"]
[Round "12.23"]
[White "Matinian, Nikita"]
[Black "Dudin, Gleb"]
[Result "1-0"]
[ECO "B15"]
[WhiteElo "2454"]
[BlackElo "2438"]
[Annotator "ChessBase"]
[PlyCount "75"]
[EventDate "2021.10.11"]
[EventType "blitz"]
[EventCountry "RUS"]
[SourceTitle "playchess.com"]
[Source "ChessBase"]
[SourceQuality "1"]
[TimeControl "180+2"]

1. e4 {[%emt 0:00:00]} c6 {[%emt 0:00:03]} 2. Nc3 {[%emt 0:00:01]} d5 {[%emt 0:
00:06]} 3. Nf3 {[%emt 0:00:01]} g6 {[%emt 0:00:04]} 4. d4 {[%emt 0:00:07]} Bg7
{[%emt 0:00:08]} 5. Bd3 {[%emt 0:00:00]} Bg4 {[%emt 0:00:06]} 6. e5 {[%emt 0:
00:01]} e6 {[%emt 0:00:07]} 7. h3 {[%emt 0:00:01]} Bxf3 {[%emt 0:00:00]} 8.
Qxf3 {[%emt 0:00:07]} Nd7 {[%emt 0:00:19]} 9. Ne2 {[%emt 0:00:07]} Ne7 {
[%emt 0:00:10]} 10. g4 {[%emt 0:00:03]} c5 {[%emt 0:00:03]} 11. c3 {[%emt 0:00:
00]} Nc6 {[%emt 0:00:03]} 12. O-O {[%emt 0:00:22]} O-O {[%emt 0:00:06]} 13. Be3
{[%emt 0:00:07]} f6 {[%emt 0:00:09]} 14. exf6 {[%emt 0:00:03]} Bxf6 {[%emt 0:
00:00]} 15. Qg3 {[%emt 0:00:05]} cxd4 {[%emt 0:00:52]} 16. cxd4 {[%emt 0:00:00]
} e5 {[%emt 0:00:00]} 17. dxe5 {[%emt 0:01:02]} Ndxe5 {[%emt 0:00:00]} 18. Rad1
{[%emt 0:00:03]} Qe7 {[%emt 0:00:35]} 19. Nf4 {[%emt 0:00:15]} Rad8 {[%emt 0:
00:02]} 20. Bb1 {[%emt 0:00:13]} Qf7 {[%emt 0:00:22]} 21. Nd3 {[%emt 0:00:04]}
Nc4 {[%emt 0:00:02]} 22. Bh6 {[%emt 0:00:12]} Rfe8 {[%emt 0:00:00]} 23. b3 {
[%emt 0:00:00]} Nd6 {[%emt 0:00:00]} 24. Be3 {[%emt 0:00:33]} Ne4 {[%emt 0:00:
10]} 25. Qg2 {[%emt 0:00:00]} Nc3 {[%emt 0:00:03]} 26. Rde1 {[%emt 0:00:01]}
Nxb1 {[%emt 0:00:08]} 27. Rxb1 {[%emt 0:00:04]} d4 {[%emt 0:00:15]} 28. Bd2 {
[%emt 0:00:00]} Re2 {[%emt 0:00:00]} 29. Rbd1 {[%emt 0:00:00]} Rde8 {[%emt 0:
00:04]} 30. Nf4 {[%emt 0:00:00]} R2e4 {[%emt 0:00:00]} 31. Nd3 {[%emt 0:00:06]}
Bg7 {[%emt 0:00:00]} 32. Rfe1 {[%emt 0:00:01]} Rxe1+ {[%emt 0:00:06]} 33. Rxe1
{[%emt 0:00:00]} Rxe1+ {[%emt 0:00:00]} 34. Bxe1 {[%emt 0:00:00]} Qe6 {[%emt 0:
00:03]} 35. Kf1 {[%emt 0:00:06]} Bf6 {[%emt 0:00:03]} 36. Qf3 {[%emt 0:00:00]}
Kg7 {[%emt 0:00:02]} 37. Nc5 {[%emt 0:00:04]} Qe7 {[%emt 0:00:02]} 38. Qd5 {
[%emt 0:00:05]} 1-0

[Event "RUS-ch Blitz 2021"]
[Site "Sochi"]
[Date "2021.10.11"]
[Round "12.24"]
[White "Zakaryan, David"]
[Black "Dashko, Andrey"]
[Result "1-0"]
[ECO "B42"]
[WhiteElo "2283"]
[BlackElo "2219"]
[Annotator "NA"]
[PlyCount "53"]
[EventDate "2021.10.11"]
[EventType "blitz"]
[EventCountry "RUS"]
[SourceTitle "playchess.com"]
[Source "ChessBase"]
[SourceQuality "1"]
[TimeControl "180+2"]

1. e4 {[%emt 0:00:00]} c5 {[%emt 0:00:03]} 2. Nf3 {[%emt 0:00:02]} e6 {[%emt 0:
00:00]} 3. d4 {[%emt 0:00:00]} cxd4 {[%emt 0:00:00]} 4. Nxd4 {[%emt 0:00:08]}
a6 {[%emt 0:00:00]} 5. Bd3 {[%emt 0:00:00]} Bc5 {[%emt 0:00:00]} 6. Nb3 {
[%emt 0:00:00]} Ba7 {[%emt 0:00:00]} 7. Qg4 {[%emt 0:00:02]} Nf6 {[%emt 0:00:
04]} 8. Qg3 {[%emt 0:00:07]} Nh5 {[%emt 0:00:07]} 9. Qh3 {[%emt 0:00:00]} Qf6 {
[%emt 0:00:14]} 10. Qxh5 {[%emt 0:00:06]} Qxf2+ {[%emt 0:00:00]} 11. Kd1 {
[%emt 0:00:00]} Qxg2 {[%emt 0:00:05]} 12. Rf1 {[%emt 0:00:00]} O-O {[%emt 0:00:
26]} 13. e5 {[%emt 0:00:07]} g6 {[%emt 0:00:00]} 14. Qf3 {[%emt 0:00:00]} Qxh2
{[%emt 0:00:17]} 15. Bf4 {[%emt 0:00:14]} Qh4 {[%emt 0:00:04]} 16. Rh1 {
[%emt 0:00:07]} Qf2 {[%emt 0:00:03]} 17. Qh3 {[%emt 0:00:12]} h5 {[%emt 0:00:
00]} 18. Rf1 {[%emt 0:00:07]} Qb6 {[%emt 0:00:02]} 19. Nc3 {[%emt 0:00:07]} d5
{[%emt 0:00:07]} 20. Bh6 {[%emt 0:00:12]} Nc6 {[%emt 0:00:02]} 21. Bxf8 {
[%emt 0:00:17]} Kxf8 {[%emt 0:00:04]} 22. Bxg6 {[%emt 0:00:02]} Nxe5 {[%emt 0:
00:01]} 23. Qxh5 {[%emt 0:00:09]} Nxg6 {[%emt 0:00:10]} 24. Qxg6 {[%emt 0:00:
02]} Qc7 {[%emt 0:00:00]} 25. Qf6 {[%emt 0:00:03]} Ke8 {[%emt 0:00:29]} 26.
Qh8+ {[%emt 0:00:24]} Ke7 {[%emt 0:00:00]} 27. Rxf7+ {[%emt 0:00:03]} 1-0

[Event "RUS-ch Blitz 2021"]
[Site "Sochi"]
[Date "2021.10.11"]
[Round "13.2"]
[White "Sarana, Alexey"]
[Black "Alekseev, Evgeny"]
[Result "1-0"]
[ECO "D37"]
[WhiteElo "2649"]
[BlackElo "2602"]
[Annotator "ChessBase"]
[PlyCount "85"]
[EventDate "2021.10.11"]
[EventType "blitz"]
[EventCountry "RUS"]
[SourceTitle "playchess.com"]
[Source "ChessBase"]
[SourceQuality "1"]
[TimeControl "180+2"]

1. d4 {[%emt 0:00:05]} Nf6 {[%emt 0:00:00]} 2. c4 {[%emt 0:00:00]} e6 {[%emt 0:
00:00]} 3. Nf3 {[%emt 0:00:00]} d5 {[%emt 0:00:00]} 4. Nc3 {[%emt 0:00:03]}
Nbd7 {[%emt 0:00:03]} 5. Bf4 {[%emt 0:00:00]} Bb4 {[%emt 0:00:00]} 6. e3 {
[%emt 0:00:08]} c5 {[%emt 0:00:00]} 7. Be2 {[%emt 0:00:10]} cxd4 {[%emt 0:00:
15]} 8. Qxd4 {[%emt 0:00:06]} O-O {[%emt 0:00:20]} 9. O-O {[%emt 0:00:00]} Bc5
{[%emt 0:00:06]} 10. Qd3 {[%emt 0:00:23]} dxc4 {[%emt 0:00:05]} 11. Qxc4 {
[%emt 0:00:00]} a6 {[%emt 0:00:07]} 12. Rfd1 {[%emt 0:00:10]} b5 {[%emt 0:00:
00]} 13. Qb3 {[%emt 0:00:09]} Bb7 {[%emt 0:00:06]} 14. Ne5 {[%emt 0:00:09]} Qe7
{[%emt 0:00:11]} 15. Nxd7 {[%emt 0:00:19]} Nxd7 {[%emt 0:00:00]} 16. a4 {
[%emt 0:00:00]} b4 {[%emt 0:00:04]} 17. a5 {[%emt 0:00:00]} Bxg2 {[%emt 0:01:
04]} 18. Kxg2 {[%emt 0:00:14]} bxc3 {[%emt 0:00:00]} 19. Qxc3 {[%emt 0:00:14]}
Nf6 {[%emt 0:00:02]} 20. Bf3 {[%emt 0:00:01]} Nd5 {[%emt 0:00:16]} 21. Bxd5 {
[%emt 0:00:14]} exd5 {[%emt 0:00:00]} 22. Qe5 {[%emt 0:00:07]} Qxe5 {[%emt 0:
00:15]} 23. Bxe5 {[%emt 0:00:00]} Rfd8 {[%emt 0:00:03]} 24. Rac1 {[%emt 0:00:
01]} Bf8 {[%emt 0:00:23]} 25. Rc6 {[%emt 0:00:10]} f6 {[%emt 0:00:05]} 26. Bc7
{[%emt 0:00:08]} Rd7 {[%emt 0:00:03]} 27. Bb6 {[%emt 0:00:00]} Re8 {[%emt 0:00:
02]} 28. Bd4 {[%emt 0:00:14]} Ra8 {[%emt 0:00:03]} 29. Bb6 {[%emt 0:00:22]} Re8
{[%emt 0:00:07]} 30. Kf3 {[%emt 0:00:00]} Kf7 {[%emt 0:00:00]} 31. Rdc1 {
[%emt 0:00:02]} Re6 {[%emt 0:00:06]} 32. Rxe6 {[%emt 0:00:03]} Kxe6 {[%emt 0:
00:00]} 33. Rc6+ {[%emt 0:00:00]} Rd6 {[%emt 0:00:06]} 34. Rc8 {[%emt 0:00:00]}
Be7 {[%emt 0:00:07]} 35. Bc5 {[%emt 0:00:08]} Rd8 {[%emt 0:00:00]} 36. Rc6+ {
[%emt 0:00:11]} Kd7 {[%emt 0:00:00]} 37. Bxe7 {[%emt 0:00:02]} Kxe7 {[%emt 0:
00:00]} 38. Rxa6 {[%emt 0:00:02]} Rb8 {[%emt 0:00:01]} 39. Rb6 {[%emt 0:00:05]}
Rxb6 {[%emt 0:00:04]} 40. axb6 {[%emt 0:00:00]} Kd6 {[%emt 0:00:04]} 41. e4 {
[%emt 0:00:12]} dxe4+ {[%emt 0:00:04]} 42. Kxe4 {[%emt 0:00:00]} g6 {[%emt 0:
00:00]} 43. b7 {[%emt 0:00:07]} 1-0